[Event "***Titled Tuesday 3|2 Blitz"]
[Site "Chess.com"]
[Date "2017.02.07"]
[Round "3"]
[White "Boryboy"]
[Black "Incognito_Knight"]
[Result "0-1"]
[WhiteElo "2375"]
[BlackElo "2286"]
[TimeControl "180+2"]
[EndTime "13:39:08 PST"]
[Termination "Incognito_Knight won by resignation"]

1. d4 {[%clk 0:03:02]} 1... d5 {[%clk 0:02:58.6]} 2. Nf3 {[%clk 0:03:01.6]} 2...
Nf6 {[%clk 0:02:58.2]} 3. c4 {[%clk 0:03:02.3]} 3... e6 {[%clk 0:02:59]} 4. g3
{[%clk 0:03:02.4]} 4... dxc4 {[%clk 0:02:59.3]} 5. Bg2 {[%clk 0:03:03.7]} 5...
c5 {[%clk 0:03:00.9]} 6. O-O {[%clk 0:03:03.5]} 6... Nc6 {[%clk 0:03:02]} 7.
dxc5 {[%clk 0:03:04.7]} 7... Qxd1 {[%clk 0:03:02.8]} 8. Rxd1 {[%clk 0:03:06.6]}
8... Bxc5 {[%clk 0:03:03.8]} 9. Nbd2 {[%clk 0:03:08.3]} 9... c3 {[%clk
0:03:05.1]} 10. bxc3 {[%clk 0:03:10.2]} 10... O-O {[%clk 0:03:06.3]} 11. Nb3
{[%clk 0:03:10.7]} 11... Be7 {[%clk 0:03:07.2]} 12. Nfd4 {[%clk 0:03:12]} 12...
Bd7 {[%clk 0:03:04.4]} 13. Bg5 {[%clk 0:02:59.2]} 13... Rfd8 {[%clk 0:02:54.5]}
14. Nxc6 {[%clk 0:02:49.7]} 14... Bxc6 {[%clk 0:02:54.4]} 15. Bxc6 {[%clk
0:02:51.2]} 15... bxc6 {[%clk 0:02:55.5]} 16. Na5 {[%clk 0:02:52.7]} 16... Nd5
{[%clk 0:02:14.5]} 17. Nxc6 {[%clk 0:02:40.3]} 17... Bxg5 {[%clk 0:02:11]} 18.
Nxd8 {[%clk 0:02:41.4]} 18... Bxd8 {[%clk 0:02:08.6]} 19. c4 {[%clk 0:02:40.2]}
19... Nf6 {[%clk 0:02:06.3]} 20. Rab1 {[%clk 0:02:37.6]} 20... Bb6 {[%clk
0:02:01.9]} 21. Rb5 {[%clk 0:02:33.9]} 21... Ne4 {[%clk 0:01:59.1]} 22. e3
{[%clk 0:02:28.5]} 22... Nc3 {[%clk 0:01:58.1]} 23. Rd7 {[%clk 0:02:29.6]} 23...
Nxb5 {[%clk 0:01:57.6]} 24. cxb5 {[%clk 0:02:31.5]} 24... Kf8 {[%clk 0:01:54.7]}
25. a4 {[%clk 0:02:32.1]} 25... Rb8 {[%clk 0:01:49.6]} 26. Rd3 {[%clk
0:02:27.5]} 26... Ke7 {[%clk 0:01:48.1]} 27. Ra3 {[%clk 0:02:28.4]} 27... Ba5
{[%clk 0:01:47.9]} 28. Rd3 {[%clk 0:02:28.9]} 28... Rd8 {[%clk 0:01:47.7]} 29.
Rb3 {[%clk 0:02:28.9]} 29... Rd1+ {[%clk 0:01:47.5]} 30. Kg2 {[%clk 0:02:30.5]}
30... Ra1 {[%clk 0:01:47.9]} 31. h4 {[%clk 0:02:29.5]} 31... Rxa4 {[%clk
0:01:48.4]} 32. h5 {[%clk 0:02:31.1]} 32... Rb4 {[%clk 0:01:48.9]} 33. Ra3
{[%clk 0:02:31.9]} 33... Rxb5 {[%clk 0:01:50.2]} 34. g4 {[%clk 0:02:33.5]} 34...
Bb6 {[%clk 0:01:49.2]} 35. Kf3 {[%clk 0:02:34.6]} 35... a5 {[%clk 0:01:49.1]}
36. Kg3 {[%clk 0:02:34.4]} 36... Rb4 {[%clk 0:01:48]} 37. Rc3 {[%clk 0:02:32.7]}
37... a4 {[%clk 0:01:48]} 38. Rc8 {[%clk 0:02:32.4]} 38... Rb5 {[%clk
0:01:44.3]} 39. Rh8 {[%clk 0:02:26.1]} 39... a3 {[%clk 0:01:43]} 40. Rxh7 {[%clk
0:02:26.9]} 40... a2 {[%clk 0:01:43.5]} 41. Rxg7 {[%clk 0:02:28.4]} 41... a1=Q
{[%clk 0:01:43.1]} 42. h6 {[%clk 0:02:29.9]} 42... Qg1+ {[%clk 0:01:37]} 43. Kf3
{[%clk 0:02:29.1]} 43... Qh1+ {[%clk 0:01:37.9]} 0-1

[Event "***Titled Tuesday 3|2 Blitz"]
[Site "Chess.com"]
[Date "2017.02.07"]
[Round "3"]
[White "kleinebeer98"]
[Black "FabianoCaruana"]
[Result "0-1"]
[WhiteElo "2472"]
[BlackElo "2690"]
[TimeControl "180+2"]
[EndTime "13:39:22 PST"]
[Termination "FabianoCaruana won by resignation"]

1. e4 {[%clk 0:02:46.6]} 1... c5 {[%clk 0:02:59.9]} 2. Nf3 {[%clk 0:02:46.5]}
2... e6 {[%clk 0:03:00.4]} 3. b3 {[%clk 0:02:45.3]} 3... b6 {[%clk 0:03:01]} 4.
Bd3 {[%clk 0:02:43.8]} 4... Bb7 {[%clk 0:03:00.6]} 5. O-O {[%clk 0:02:44.6]}
5... Nc6 {[%clk 0:02:58.1]} 6. Re1 {[%clk 0:02:41.9]} 6... Nf6 {[%clk
0:02:57.6]} 7. e5 {[%clk 0:02:38.9]} 7... Nd5 {[%clk 0:02:58.3]} 8. Be4 {[%clk
0:02:37.4]} 8... Nde7 {[%clk 0:02:48.6]} 9. d4 {[%clk 0:02:26.2]} 9... cxd4
{[%clk 0:02:48.3]} 10. Nxd4 {[%clk 0:02:26.2]} 10... Ng6 {[%clk 0:02:41.8]} 11.
Nxc6 {[%clk 0:02:18.9]} 11... Bxc6 {[%clk 0:02:42.9]} 12. Bxc6 {[%clk
0:01:59.1]} 12... dxc6 {[%clk 0:02:44.8]} 13. Qf3 {[%clk 0:02:00.2]} 13... Qd5
{[%clk 0:02:44.6]} 14. Nd2 {[%clk 0:02:00.2]} 14... Bb4 {[%clk 0:02:40.2]} 15.
Qxd5 {[%clk 0:01:23.8]} 15... cxd5 {[%clk 0:02:42.1]} 16. Re2 {[%clk 0:01:25]}
16... Bc3 {[%clk 0:02:41.2]} 17. Rb1 {[%clk 0:01:25.5]} 17... Nxe5 {[%clk
0:02:32.8]} 18. Bb2 {[%clk 0:01:25.2]} 18... Bxb2 {[%clk 0:02:33.8]} 19. Rxb2
{[%clk 0:01:27.1]} 19... Nc6 {[%clk 0:02:33.4]} 20. c3 {[%clk 0:01:28.4]} 20...
Ke7 {[%clk 0:02:32.4]} 21. f4 {[%clk 0:01:26.5]} 21... Kf6 {[%clk 0:02:31.2]}
22. g4 {[%clk 0:01:23.1]} 22... h5 {[%clk 0:02:27.9]} 23. h3 {[%clk 0:01:17.8]}
23... hxg4 {[%clk 0:02:28.6]} 24. hxg4 {[%clk 0:01:19.7]} 24... Rh4 {[%clk
0:02:29.7]} 25. Rg2 {[%clk 0:01:20.9]} 25... Rah8 {[%clk 0:02:28.8]} 26. Nf3
{[%clk 0:01:18.5]} 26... Rh1+ {[%clk 0:02:29.5]} 27. Kf2 {[%clk 0:01:20]} 27...
Rc1 {[%clk 0:02:30]} 28. c4 {[%clk 0:01:04.4]} 28... dxc4 {[%clk 0:02:28.4]} 29.
bxc4 {[%clk 0:01:06.3]} 29... Rxc4 {[%clk 0:02:29.4]} 30. Kg3 {[%clk 0:01:06.1]}
30... Rd8 {[%clk 0:02:26.8]} 31. Rbc2 {[%clk 0:01:03.9]} 31... Rc5 {[%clk
0:02:20.7]} 32. g5+ {[%clk 0:01:01.8]} 32... Ke7 {[%clk 0:02:20.7]} 33. g6
{[%clk 0:01:02.1]} 33... Rd3 {[%clk 0:02:18.7]} 34. Kg4 {[%clk 0:00:48]} 34...
f5+ {[%clk 0:02:15.6]} 0-1

[Event "***Titled Tuesday 3|2 Blitz"]
[Site "Chess.com"]
[Date "2017.02.07"]
[Round "3"]
[White "GianmarcoVaR"]
[Black "Rating-Schmating"]
[Result "1-0"]
[WhiteElo "2394"]
[BlackElo "2271"]
[TimeControl "180+2"]
[EndTime "13:39:22 PST"]
[Termination "GianmarcoVaR won by checkmate"]

1. d4 {[%clk 0:03:02]} 1... Nf6 {[%clk 0:02:59]} 2. Nf3 {[%clk 0:03:02.1]} 2...
d5 {[%clk 0:02:57.7]} 3. c4 {[%clk 0:03:00.6]} 3... Bf5 {[%clk 0:02:54.1]} 4.
Nc3 {[%clk 0:02:51.6]} 4... c6 {[%clk 0:02:53.3]} 5. Qb3 {[%clk 0:02:43.3]} 5...
Qb6 {[%clk 0:02:24.6]} 6. c5 {[%clk 0:02:43.7]} 6... Qc7 {[%clk 0:02:21.7]} 7.
Bf4 {[%clk 0:02:43.1]} 7... Qc8 {[%clk 0:02:20.9]} 8. h3 {[%clk 0:02:41.3]} 8...
h5 {[%clk 0:02:20.7]} 9. e3 {[%clk 0:02:41.1]} 9... Nbd7 {[%clk 0:02:20.8]} 10.
Be2 {[%clk 0:02:41.3]} 10... Ne4 {[%clk 0:02:21.4]} 11. O-O {[%clk 0:02:37.1]}
11... b5 {[%clk 0:02:12.8]} 12. a4 {[%clk 0:02:23.3]} 12... a6 {[%clk
0:01:53.5]} 13. axb5 {[%clk 0:01:57.3]} 13... axb5 {[%clk 0:01:53.1]} 14. Nxb5
{[%clk 0:01:25.7]} 14... cxb5 {[%clk 0:01:37]} 15. Qxd5 {[%clk 0:01:21.1]} 15...
Rxa1 {[%clk 0:01:30.3]} 16. Rxa1 {[%clk 0:01:23]} 16... Ndf6 {[%clk 0:01:26.3]}
17. Bxb5+ {[%clk 0:01:15.3]} 17... Bd7 {[%clk 0:00:55.9]} 18. Bxd7+ {[%clk
0:01:13.1]} 18... Qxd7 {[%clk 0:00:51.3]} 19. Ra8+ {[%clk 0:01:12.3]} 19... Qd8
{[%clk 0:00:46]} 20. Qxd8# {[%clk 0:01:10.2]} 1-0

[Event "***Titled Tuesday 3|2 Blitz"]
[Site "Chess.com"]
[Date "2017.02.07"]
[Round "3"]
[White "SavelijTartakover"]
[Black "rubhani"]
[Result "1-0"]
[WhiteElo "2534"]
[BlackElo "2373"]
[TimeControl "180+2"]
[EndTime "13:40:09 PST"]
[Termination "SavelijTartakover won by resignation"]

1. d4 {[%clk 0:03:02]} 1... Nf6 {[%clk 0:02:54.8]} 2. c4 {[%clk 0:03:02.3]} 2...
e6 {[%clk 0:02:49.6]} 3. Nf3 {[%clk 0:03:02.2]} 3... b6 {[%clk 0:02:49.8]} 4. g3
{[%clk 0:03:02.8]} 4... Bb7 {[%clk 0:02:50.9]} 5. Bg2 {[%clk 0:03:03.4]} 5... g6
{[%clk 0:02:52.2]} 6. O-O {[%clk 0:03:03.9]} 6... Bg7 {[%clk 0:02:53.4]} 7. Nc3
{[%clk 0:03:05.3]} 7... Ne4 {[%clk 0:02:54.5]} 8. Nxe4 {[%clk 0:03:02.7]} 8...
Bxe4 {[%clk 0:02:56.4]} 9. Bg5 {[%clk 0:03:04.1]} 9... Qc8 {[%clk 0:02:57.6]}
10. Qd2 {[%clk 0:03:01.9]} 10... h6 {[%clk 0:02:58.7]} 11. Be3 {[%clk
0:03:00.2]} 11... d6 {[%clk 0:02:59.4]} 12. d5 {[%clk 0:02:58.3]} 12... e5
{[%clk 0:02:34.2]} 13. b4 {[%clk 0:02:45.6]} 13... Nd7 {[%clk 0:02:26.7]} 14.
Rac1 {[%clk 0:02:39.4]} 14... a5 {[%clk 0:01:33.1]} 15. a3 {[%clk 0:02:38.4]}
15... axb4 {[%clk 0:01:31.1]} 16. axb4 {[%clk 0:02:40.3]} 16... Nf6 {[%clk
0:01:03.8]} 17. Nh4 {[%clk 0:02:27.4]} 17... Bxg2 {[%clk 0:01:02.7]} 18. Nxg2
{[%clk 0:02:27.9]} 18... Qh3 {[%clk 0:00:59.9]} 19. f3 {[%clk 0:02:27.3]} 19...
O-O {[%clk 0:00:54.9]} 20. Bf2 {[%clk 0:02:27.7]} 20... h5 {[%clk 0:00:42.1]}
21. e4 {[%clk 0:02:26.5]} 21... Kh7 {[%clk 0:00:42.8]} 22. Be3 {[%clk
0:02:25.3]} 22... Ng8 {[%clk 0:00:43.6]} 23. c5 {[%clk 0:02:23.2]} 23... bxc5
{[%clk 0:00:44]} 24. bxc5 {[%clk 0:02:25.1]} 24... f5 {[%clk 0:00:41.9]} 25.
cxd6 {[%clk 0:02:24.1]} 25... cxd6 {[%clk 0:00:43.2]} 26. exf5 {[%clk
0:02:21.6]} 26... Rxf5 {[%clk 0:00:38.1]} 27. Rc7 {[%clk 0:02:17.9]} 27... Raf8
{[%clk 0:00:34.1]} 28. Nh4 {[%clk 0:02:16.5]} 28... R5f7 {[%clk 0:00:25.9]} 29.
Qd3 {[%clk 0:02:13.8]} 29... Ne7 {[%clk 0:00:20.2]} 30. Rxe7 {[%clk 0:02:07.5]}
30... Rxe7 {[%clk 0:00:21.3]} 31. Nxg6 {[%clk 0:02:08.5]} 31... e4 {[%clk
0:00:20]} 32. Nxf8+ {[%clk 0:02:08.1]} 32... Bxf8 {[%clk 0:00:20.9]} 33. fxe4
{[%clk 0:02:08.3]} 33... Rg7 {[%clk 0:00:21.6]} 34. Rxf8 {[%clk 0:02:03.3]} 1-0

[Event "***Titled Tuesday 3|2 Blitz"]
[Site "Chess.com"]
[Date "2017.02.07"]
[Round "3"]
[White "kpio91"]
[Black "VishnuPrasanna"]
[Result "1-0"]
[WhiteElo "2526"]
[BlackElo "2472"]
[TimeControl "180+2"]
[EndTime "13:40:24 PST"]
[Termination "kpio91 won by resignation"]

1. e4 {[%clk 0:03:02]} 1... e5 {[%clk 0:02:59.1]} 2. Nf3 {[%clk 0:02:57.9]} 2...
Nc6 {[%clk 0:03:00.2]} 3. Bc4 {[%clk 0:02:59.4]} 3... Bc5 {[%clk 0:02:59.5]} 4.
O-O {[%clk 0:02:59.9]} 4... Nf6 {[%clk 0:03:00.2]} 5. d3 {[%clk 0:03:01.1]} 5...
a6 {[%clk 0:03:00.5]} 6. c3 {[%clk 0:02:59.4]} 6... d6 {[%clk 0:03:01.6]} 7. a4
{[%clk 0:02:57.1]} 7... Ba7 {[%clk 0:02:59.6]} 8. a5 {[%clk 0:02:55.6]} 8... h6
{[%clk 0:02:59]} 9. Re1 {[%clk 0:02:52.4]} 9... g5 {[%clk 0:02:59.6]} 10. Be3
{[%clk 0:02:39]} 10... Bb8 {[%clk 0:02:57.2]} 11. d4 {[%clk 0:02:31.1]} 11... g4
{[%clk 0:02:56.9]} 12. Nfd2 {[%clk 0:02:26.7]} 12... h5 {[%clk 0:02:56.5]} 13.
b4 {[%clk 0:02:17]} 13... g3 {[%clk 0:02:53]} 14. h3 {[%clk 0:02:11.2]} 14...
Ba7 {[%clk 0:02:51]} 15. Nb3 {[%clk 0:02:08.6]} 15... gxf2+ {[%clk 0:02:51.5]}
16. Bxf2 {[%clk 0:02:09]} 16... Rg8 {[%clk 0:02:53.1]} 17. Qf3 {[%clk
0:02:09.1]} 17... exd4 {[%clk 0:02:44]} 18. e5 {[%clk 0:02:03.8]} 18... dxe5
{[%clk 0:02:34.1]} 19. cxd4 {[%clk 0:02:03.1]} 19... Qe7 {[%clk 0:01:58.5]} 20.
Nc3 {[%clk 0:01:59.5]} 20... Qxb4 {[%clk 0:01:38.8]} 21. dxe5 {[%clk 0:01:54.2]}
21... Qxc4 {[%clk 0:01:39]} 22. exf6+ {[%clk 0:01:53.1]} 22... Be6 {[%clk
0:01:40.1]} 23. Bxa7 {[%clk 0:01:53.5]} 23... Qxb3 {[%clk 0:01:40]} 24. Rab1
{[%clk 0:01:33.8]} 24... Qc4 {[%clk 0:01:38.3]} 25. Nd5 {[%clk 0:01:23.9]} 25...
O-O-O {[%clk 0:01:35.5]} 26. Ne7+ {[%clk 0:01:17]} 26... Nxe7 {[%clk 0:01:04.5]}
27. fxe7 {[%clk 0:01:05.2]} 27... Rd5 {[%clk 0:01:04.9]} 28. Rbc1 {[%clk
0:01:05.1]} 28... Qa2 {[%clk 0:00:46.3]} 29. Rxe6 {[%clk 0:00:54.6]} 1-0

[Event "***Titled Tuesday 3|2 Blitz"]
[Site "Chess.com"]
[Date "2017.02.07"]
[Round "3"]
[White "HouseOfDurin"]
[Black "Kacparov"]
[Result "0-1"]
[WhiteElo "1894"]
[BlackElo "2577"]
[TimeControl "180+2"]
[EndTime "13:40:33 PST"]
[Termination "Kacparov won by resignation"]

1. c4 {[%clk 0:03:02]} 1... e5 {[%clk 0:03:00]} 2. Nc3 {[%clk 0:03:00.5]} 2...
Nf6 {[%clk 0:02:54.2]} 3. e4 {[%clk 0:02:57.9]} 3... Bc5 {[%clk 0:02:54.2]} 4.
g3 {[%clk 0:02:54.6]} 4... O-O {[%clk 0:02:53.4]} 5. Bg2 {[%clk 0:02:55.5]} 5...
Nc6 {[%clk 0:02:52.6]} 6. h3 {[%clk 0:02:53.2]} 6... d6 {[%clk 0:02:53.7]} 7.
Nge2 {[%clk 0:02:44.4]} 7... a6 {[%clk 0:02:54.5]} 8. a4 {[%clk 0:02:43.8]} 8...
Nd4 {[%clk 0:02:50.4]} 9. O-O {[%clk 0:02:33.3]} 9... c6 {[%clk 0:02:50]} 10. d3
{[%clk 0:02:12]} 10... Be6 {[%clk 0:02:38.9]} 11. Be3 {[%clk 0:01:53.7]} 11...
d5 {[%clk 0:02:30.4]} 12. cxd5 {[%clk 0:01:46.6]} 12... cxd5 {[%clk 0:02:29.7]}
13. Bxd4 {[%clk 0:01:08.9]} 13... exd4 {[%clk 0:02:30]} 14. Nxd5 {[%clk
0:01:09.5]} 14... Nxd5 {[%clk 0:02:28.4]} 15. exd5 {[%clk 0:01:08.5]} 15... Bxd5
{[%clk 0:02:29.2]} 16. Nf4 {[%clk 0:00:33]} 16... Bxg2 {[%clk 0:02:25.7]} 17.
Kxg2 {[%clk 0:00:34.9]} 17... Bd6 {[%clk 0:02:26]} 18. Qg4 {[%clk 0:00:29]}
18... Rc8 {[%clk 0:02:13.9]} 19. Rac1 {[%clk 0:00:20.9]} 19... Bxf4 {[%clk
0:02:13.1]} 20. Qxf4 {[%clk 0:00:20.9]} 20... Qd5+ {[%clk 0:02:11.8]} 21. Qf3
{[%clk 0:00:20.7]} 21... Qb3 {[%clk 0:02:11.9]} 22. Rxc8 {[%clk 0:00:14]} 22...
Rxc8 {[%clk 0:02:12.1]} 23. Qe4 {[%clk 0:00:13.5]} 23... Qxb2 {[%clk 0:02:06.8]}
24. Re1 {[%clk 0:00:14.5]} 24... h6 {[%clk 0:02:07.1]} 25. Re2 {[%clk
0:00:13.4]} 25... Qb4 {[%clk 0:02:05.5]} 26. g4 {[%clk 0:00:12.3]} 26... Rb8
{[%clk 0:01:48.8]} 27. h4 {[%clk 0:00:11.5]} 27... Qxa4 {[%clk 0:01:49.4]} 28.
g5 {[%clk 0:00:11.7]} 28... hxg5 {[%clk 0:01:50.5]} 29. hxg5 {[%clk 0:00:13.4]}
29... Qc6 {[%clk 0:01:49.1]} 30. Kf3 {[%clk 0:00:10.3]} 30... Qxe4+ {[%clk
0:01:48]} 31. Rxe4 {[%clk 0:00:11.8]} 31... a5 {[%clk 0:01:48.1]} 32. Rxd4
{[%clk 0:00:12.6]} 32... b5 {[%clk 0:01:49.4]} 33. Re4 {[%clk 0:00:07.2]} 33...
a4 {[%clk 0:01:49.8]} 34. Rb4 {[%clk 0:00:06.8]} 34... a3 {[%clk 0:01:50.6]} 35.
Rb1 {[%clk 0:00:07.5]} 35... b4 {[%clk 0:01:50.4]} 36. Ke2 {[%clk 0:00:07.9]}
36... b3 {[%clk 0:01:51.7]} 37. Kd2 {[%clk 0:00:08.7]} 37... a2 {[%clk
0:01:52.9]} 0-1

[Event "***Titled Tuesday 3|2 Blitz"]
[Site "Chess.com"]
[Date "2017.02.07"]
[Round "3"]
[White "ChristopherYoo"]
[Black "chorejason"]
[Result "1-0"]
[WhiteElo "2087"]
[BlackElo "2010"]
[TimeControl "180+2"]
[EndTime "13:40:38 PST"]
[Termination "ChristopherYoo won by resignation"]

1. e4 {[%clk 0:03:01.7]} 1... c5 {[%clk 0:03:00.6]} 2. Nf3 {[%clk 0:03:01.4]}
2... d6 {[%clk 0:03:02]} 3. d4 {[%clk 0:03:01.3]} 3... cxd4 {[%clk 0:03:02.5]}
4. Nxd4 {[%clk 0:03:00.1]} 4... Nf6 {[%clk 0:03:04.2]} 5. Nc3 {[%clk 0:02:59.9]}
5... g6 {[%clk 0:03:05.6]} 6. Be3 {[%clk 0:02:58.9]} 6... Bg7 {[%clk 0:03:07]}
7. f3 {[%clk 0:02:59.4]} 7... O-O {[%clk 0:03:08.2]} 8. Qd2 {[%clk 0:02:56.7]}
8... Nc6 {[%clk 0:03:09.4]} 9. Bc4 {[%clk 0:02:55.7]} 9... Bd7 {[%clk
0:03:09.4]} 10. h4 {[%clk 0:02:56.5]} 10... Qa5 {[%clk 0:03:10.2]} 11. h5 {[%clk
0:02:32.3]} 11... Nxh5 {[%clk 0:02:54.3]} 12. g4 {[%clk 0:02:32.5]} 12... Nf6
{[%clk 0:01:51.2]} 13. Nxc6 {[%clk 0:01:36.4]} 13... bxc6 {[%clk 0:01:50.1]} 14.
Bh6 {[%clk 0:01:34.7]} 14... Qc5 {[%clk 0:01:04.3]} 15. Bxg7 {[%clk 0:01:05.9]}
15... Kxg7 {[%clk 0:01:04.3]} 16. Qh6+ {[%clk 0:00:57.9]} 16... Kg8 {[%clk
0:01:05.2]} 17. Bb3 {[%clk 0:00:23.1]} 17... Rfb8 {[%clk 0:00:52.6]} 18. O-O-O
{[%clk 0:00:22.2]} 18... Be6 {[%clk 0:00:53.4]} 19. e5 {[%clk 0:00:19.2]} 19...
dxe5 {[%clk 0:00:48]} 20. Ne4 {[%clk 0:00:19]} 20... Bxb3 {[%clk 0:00:48.7]} 21.
Nxc5 {[%clk 0:00:19.1]} 21... Bxa2 {[%clk 0:00:43.3]} 22. Nd7 {[%clk 0:00:19.7]}
1-0

[Event "***Titled Tuesday 3|2 Blitz"]
[Site "Chess.com"]
[Date "2017.02.07"]
[Round "3"]
[White "VMikhalevski"]
[Black "DrVitman"]
[Result "1-0"]
[WhiteElo "2516"]
[BlackElo "2483"]
[TimeControl "180+2"]
[EndTime "13:40:39 PST"]
[Termination "VMikhalevski won by resignation"]

1. d4 {[%clk 0:03:02]} 1... d5 {[%clk 0:02:05.1]} 2. c4 {[%clk 0:02:54.3]} 2...
e6 {[%clk 0:02:05.7]} 3. Nf3 {[%clk 0:02:55]} 3... Nf6 {[%clk 0:02:06.9]} 4. g3
{[%clk 0:02:55.8]} 4... Nbd7 {[%clk 0:02:08]} 5. Bg2 {[%clk 0:02:55.9]} 5... c6
{[%clk 0:02:06.8]} 6. O-O {[%clk 0:02:54.5]} 6... Be7 {[%clk 0:02:08]} 7. b3
{[%clk 0:02:52.6]} 7... O-O {[%clk 0:02:09.3]} 8. Nc3 {[%clk 0:02:53]} 8... b6
{[%clk 0:02:10.7]} 9. Qc2 {[%clk 0:02:50.1]} 9... Bb7 {[%clk 0:02:08.2]} 10. Rd1
{[%clk 0:02:48.3]} 10... Rc8 {[%clk 0:02:07.2]} 11. e4 {[%clk 0:02:48.6]} 11...
dxe4 {[%clk 0:02:07.7]} 12. Ng5 {[%clk 0:02:47.6]} 12... c5 {[%clk 0:01:57.3]}
13. dxc5 {[%clk 0:02:46.7]} 13... Bxc5 {[%clk 0:01:54]} 14. Ncxe4 {[%clk
0:02:44.7]} 14... Bxe4 {[%clk 0:01:43.6]} 15. Nxe4 {[%clk 0:02:36.6]} 15... Nxe4
{[%clk 0:01:36.7]} 16. Bxe4 {[%clk 0:02:36.6]} 16... g6 {[%clk 0:01:31]} 17. b4
{[%clk 0:02:27]} 17... Bxb4 {[%clk 0:00:47.5]} 18. Qa4 {[%clk 0:02:26.5]} 18...
Nc5 {[%clk 0:00:47.3]} 19. Qc2 {[%clk 0:02:14.6]} 19... Qe7 {[%clk 0:00:44.9]}
20. a3 {[%clk 0:02:12.1]} 20... Ba5 {[%clk 0:00:44.7]} 21. Bf3 {[%clk
0:02:06.7]} 21... Rfd8 {[%clk 0:00:44.3]} 22. Bb2 {[%clk 0:02:07.4]} 22... Rxd1+
{[%clk 0:00:40.5]} 23. Rxd1 {[%clk 0:02:07.4]} 23... Rd8 {[%clk 0:00:42]} 24. h4
{[%clk 0:02:05.9]} 24... Rxd1+ {[%clk 0:00:40.2]} 25. Qxd1 {[%clk 0:02:05.9]}
25... e5 {[%clk 0:00:39.1]} 26. Qd5 {[%clk 0:02:03.3]} 26... Na4 {[%clk
0:00:28.2]} 27. Bxe5 {[%clk 0:01:58.9]} 27... Bc3 {[%clk 0:00:26.5]} 28. Bd6
{[%clk 0:01:53.3]} 28... Qe8 {[%clk 0:00:21.5]} 29. Kg2 {[%clk 0:01:44]} 29...
Bg7 {[%clk 0:00:19]} 30. Qb7 {[%clk 0:01:41.9]} 30... Nc5 {[%clk 0:00:19.2]} 31.
Qxa7 {[%clk 0:01:41.5]} 31... Bd4 {[%clk 0:00:17.2]} 32. Qxb6 {[%clk 0:01:31.5]}
32... Qe1 {[%clk 0:00:17.2]} 33. Qd8+ {[%clk 0:01:29.6]} 33... Kg7 {[%clk
0:00:16.9]} 34. Bf8+ {[%clk 0:01:29.6]} 1-0

[Event "***Titled Tuesday 3|2 Blitz"]
[Site "Chess.com"]
[Date "2017.02.07"]
[Round "3"]
[White "Cecile_Haussernot"]
[Black "bilelou"]
[Result "1-0"]
[WhiteElo "2282"]
[BlackElo "2339"]
[TimeControl "180+2"]
[EndTime "13:40:43 PST"]
[Termination "Cecile_Haussernot won by resignation"]

1. e4 {[%clk 0:03:00.5]} 1... b6 {[%clk 0:02:53.4]} 2. d4 {[%clk 0:03:00.6]}
2... Bb7 {[%clk 0:02:49.4]} 3. Bd3 {[%clk 0:02:57.5]} 3... e6 {[%clk 0:02:49.4]}
4. Nc3 {[%clk 0:02:58.5]} 4... Bb4 {[%clk 0:02:49.7]} 5. Ne2 {[%clk 0:02:59.5]}
5... Nf6 {[%clk 0:02:47.8]} 6. O-O {[%clk 0:02:53.6]} 6... c5 {[%clk 0:02:45]}
7. e5 {[%clk 0:02:29.6]} 7... cxd4 {[%clk 0:02:24.4]} 8. Nxd4 {[%clk 0:02:25.9]}
8... Bxc3 {[%clk 0:02:21.5]} 9. bxc3 {[%clk 0:02:26.8]} 9... Nd5 {[%clk
0:02:21.4]} 10. Ba3 {[%clk 0:02:23.6]} 10... Qg5 {[%clk 0:02:16.6]} 11. Nb5
{[%clk 0:02:02.1]} 11... Nxc3 {[%clk 0:00:30.5]} 12. Nd6+ {[%clk 0:01:57.2]}
12... Kf8 {[%clk 0:00:30.3]} 13. Nxb7+ {[%clk 0:01:51.4]} 13... Kg8 {[%clk
0:00:30.2]} 14. Qf3 {[%clk 0:01:51.4]} 14... Nc6 {[%clk 0:00:29.8]} 15. Nd6
{[%clk 0:01:43.3]} 15... Rf8 {[%clk 0:00:29.6]} 16. Ne4 {[%clk 0:01:40.8]} 16...
Nxe4 {[%clk 0:00:27.4]} 17. Qxe4 {[%clk 0:01:42.2]} 17... Rc8 {[%clk 0:00:26.3]}
18. f4 {[%clk 0:01:43.4]} 18... Qg4 {[%clk 0:00:25.3]} 19. Rf3 {[%clk
0:01:39.9]} 19... h5 {[%clk 0:00:25.1]} 20. Rg3 {[%clk 0:01:40]} 20... Qh4
{[%clk 0:00:25.7]} 21. Ba6 {[%clk 0:01:38.2]} 21... Re8 {[%clk 0:00:23.5]} 22.
Rd1 {[%clk 0:01:34.3]} 22... Rd8 {[%clk 0:00:22.9]} 23. Bb5 {[%clk 0:01:33.3]}
23... Nb8 {[%clk 0:00:23.1]} 24. Bd6 {[%clk 0:01:31.3]} 24... a6 {[%clk
0:00:22.9]} 25. Be2 {[%clk 0:01:31]} 25... Nc6 {[%clk 0:00:21.9]} 26. Rh3 {[%clk
0:01:32]} 26... f5 {[%clk 0:00:21.4]} 27. Qe3 {[%clk 0:01:29.2]} 27... Qxh3
{[%clk 0:00:19.3]} 28. Qxh3 {[%clk 0:01:28.3]} 1-0

[Event "***Titled Tuesday 3|2 Blitz"]
[Site "Chess.com"]
[Date "2017.02.07"]
[Round "3"]
[White "wannabe2700"]
[Black "GasconJR"]
[Result "1-0"]
[WhiteElo "2316"]
[BlackElo "2317"]
[TimeControl "180+2"]
[EndTime "13:40:43 PST"]
[Termination "wannabe2700 won on time"]

1. e4 {[%clk 0:03:02]} 1... e5 {[%clk 0:02:59]} 2. Nf3 {[%clk 0:03:01.2]} 2...
Nc6 {[%clk 0:02:56.8]} 3. Bb5 {[%clk 0:03:01.4]} 3... a6 {[%clk 0:02:56.9]} 4.
Ba4 {[%clk 0:03:02.4]} 4... Nf6 {[%clk 0:02:57.2]} 5. O-O {[%clk 0:03:02.2]}
5... Be7 {[%clk 0:02:55]} 6. d4 {[%clk 0:03:02.6]} 6... exd4 {[%clk 0:02:39.1]}
7. e5 {[%clk 0:03:03]} 7... Ne4 {[%clk 0:02:39.2]} 8. Nxd4 {[%clk 0:02:59.4]}
8... Nc5 {[%clk 0:02:37.1]} 9. Nf5 {[%clk 0:02:52.5]} 9... O-O {[%clk
0:02:22.8]} 10. Qg4 {[%clk 0:02:28.1]} 10... g6 {[%clk 0:02:21.9]} 11. Bxc6
{[%clk 0:02:11.3]} 11... dxc6 {[%clk 0:02:18]} 12. Nxe7+ {[%clk 0:02:12.8]}
12... Qxe7 {[%clk 0:02:14.7]} 13. Qg3 {[%clk 0:02:14.1]} 13... Bf5 {[%clk
0:01:59.1]} 14. Nc3 {[%clk 0:02:03.8]} 14... Rfe8 {[%clk 0:01:57.5]} 15. Re1
{[%clk 0:02:01.7]} 15... Bxc2 {[%clk 0:01:55.1]} 16. Bg5 {[%clk 0:02:01.8]}
16... Qe6 {[%clk 0:01:48.1]} 17. Qh4 {[%clk 0:01:44.2]} 17... h5 {[%clk
0:01:39.3]} 18. h3 {[%clk 0:01:39.2]} 18... Bf5 {[%clk 0:01:33.7]} 19. f3 {[%clk
0:01:31.6]} 19... Nd3 {[%clk 0:01:32.4]} 20. Re3 {[%clk 0:01:30.8]} 20... c5
{[%clk 0:01:25.3]} 21. g4 {[%clk 0:01:29.5]} 21... Nxe5 {[%clk 0:01:17.1]} 22.
Bf6 {[%clk 0:01:11.1]} 22... Qc6 {[%clk 0:00:17.6]} 23. Bxe5 {[%clk 0:01:02.8]}
23... Bd7 {[%clk 0:00:02.3]} 24. gxh5 {[%clk 0:01:01.4]} 1-0